bitfinex/quotes_BTCUSD_20251104
["timestamp","ask_amount","ask_price","bid_price","bid_amount"]
[1762263390417,0.1934328,104130.0,104120.0,0.21110605]
[1762263390637,0.0013652,104130.0,104120.0,0.21110605]
[1762263390835,0.0013652,104130.0,104120.0,0.23927605]
[1762263391785,0.0013652,104130.0,104120.0,0.21510605]
[1762263391998,0.30033187,104130.0,104120.0,0.19908605]
[1762263392210,0.28891187,104130.0,104120.0,0.21409605]
[1762263392645,0.09684427,104130.0,104120.0,0.23826605]
[1762263392862,0.0013652,104130.0,104120.0,0.23826605]
[1762263393073,0.0013652,104130.0,104120.0,0.33142605]
[1762263393284,0.0013652,104130.0,104120.0,0.33226235]
[1762263393433,0.0013652,104130.0,104120.0,0.33226234]
[1762263393841,0.0013652,104130.0,104120.0,0.32826233]
[1762263394250,0.0013652,104130.0,104120.0,0.33626233]
[1762263394789,0.0013652,104130.0,104120.0,0.33326233]
[1762263395027,0.0013652,104130.0,104120.0,0.33326232]
[1762263395210,0.0013652,104130.0,104120.0,0.33826232]
[1762263395860,0.0013652,104130.0,104120.0,0.29510232]
[1762263396067,0.2048528,104130.0,104120.0,0.25592232]
[1762263396301,0.2162728,104130.0,104120.0,0.01383626]
[1762263396504,0.0127852,104130.0,104120.0,0.20592231]
[1762263396676,0.0013652,104130.0,104120.0,0.20592231]
[1762263396871,0.0013652,104130.0,104120.0,0.29510231]
[1762263397079,0.0013652,104130.0,104120.0,0.2871023]
[1762263397284,0.2048528,104130.0,104120.0,0.06183625]
[1762263397490,0.2162728,104130.0,104120.0,0.2039223]
[1762263397849,0.2048528,104130.0,104120.0,0.1989223]
[1762263398305,0.2048528,104130.0,104120.0,0.20292229]
[1762263398811,0.2048528,104130.0,104120.0,0.01083624]
[1762263399017,0.2162728,104130.0,104120.0,0.01083624]
[1762263399600,0.2162728,104130.0,104120.0,0.20292229]
[1762263399808,0.0127852,104130.0,104120.0,0.20292229]
[1762263400435,0.0013652,104130.0,104120.0,0.20292229]
[1762263401458,0.0013652,104130.0,104120.0,0.21793229]
[1762263401672,0.0013652,104130.0,104120.0,0.29210228]
[1762263402428,0.0013652,104130.0,104120.0,0.26793228]
[1762263402703,0.2048528,104130.0,104120.0,0.25292228]
[1762263402932,0.2048528,104130.0,104120.0,0.25292227]
[1762263403150,0.2162728,104130.0,104120.0,0.01083622]
[1762263403623,0.31175187,104130.0,104120.0,0.01083622]
[1762263403827,0.31175187,104130.0,104120.0,0.00483622]
[1762263403983,0.31175187,104130.0,104120.0,0.00683622]
[1762263404160,0.31175187,104130.0,104120.0,0.00283622]
[1762263404583,0.31175187,104130.0,104120.0,0.00383622]
[1762263405070,0.31175187,104130.0,104120.0,0.19592227]
[1762263405265,0.31175187,104130.0,104120.0,0.00383622]
[1762263406300,0.3324546,104130.0,104120.0,0.00383622]
[1762263406920,0.89881568,104130.0,104120.0,0.00383622]
[1762263407120,0.92577459,104130.0,104120.0,0.00383622]
[1762263407521,0.35941351,104130.0,104120.0,0.00383622]
[1762263407947,0.35941351,104130.0,104120.0,0.00083622]
[1762263408276,0.92577459,104130.0,104120.0,0.00083622]
[1762263408483,0.19213705,104100.0,104080.0,0.6521684]
[1762263408657,0.00678,104090.0,104080.0,0.65231409]
[1762263408868,0.21034141,104090.0,104080.0,0.60231409]
[1762263409073,0.21034141,104090.0,104080.0,0.65315031]
[1762263409396,0.00678,104110.0,104090.0,0.19212914]
[1762263409595,0.1988845,104110.0,104100.0,0.06163]
[1762263409818,0.1988845,104110.0,104100.0,0.25375295]
[1762263409974,0.2103045,104110.0,104100.0,0.24212295]
[1762263410397,0.19212295,104100.0,104090.0,0.25375914]
[1762263410595,0.20354295,104100.0,104090.0,0.19214141]
[1762263411302,0.20354295,104100.0,104080.0,0.67589031]
[1762263411529,0.19214141,104090.0,104080.0,0.60315031]
[1762263411835,0.19214141,104090.0,104080.0,0.65315031]
[1762263412023,0.19212295,104100.0,104090.0,0.19214141]
[1762263412223,0.20354295,104100.0,104090.0,0.20677141]
[1762263412404,0.20354295,104100.0,104090.0,0.19514141]
[1762263412590,0.20354295,104100.0,104090.0,0.003]
[1762263413000,0.20354295,104100.0,104090.0,0.19214141]
[1762263413224,0.20354295,104100.0,104090.0,0.20377141]
[1762263413451,0.19212295,104100.0,104090.0,0.21935141]
[1762263413817,0.20354295,104100.0,104090.0,0.20377141]
[1762263414028,0.20354295,104100.0,104090.0,0.20777141]
[1762263414431,0.20354295,104100.0,104090.0,0.01563]
[1762263414607,0.21496295,104100.0,104090.0,0.004]
[1762263415011,0.21496295,104100.0,104090.0,0.007]
[1762263415247,0.21496295,104100.0,104090.0,0.19914141]
[1762263415447,0.20354295,104100.0,104090.0,0.19914141]
[1762263415651,0.21377658,104100.0,104090.0,0.19914141]
[1762263416244,0.1988845,104110.0,104100.0,0.19212295]
[1762263416439,0.19212295,104100.0,104090.0,0.29909141]
[1762263416644,0.1988845,104110.0,104090.0,0.29909141]
[1762263416855,0.1988845,104110.0,104100.0,0.19212295]
[1762263417313,0.19212295,104100.0,104090.0,0.06463]
[1762263417489,0.20354295,104100.0,104090.0,0.003]
[1762263417817,0.20354295,104100.0,104090.0,0.19214141]
[1762263418221,0.20354295,104100.0,104090.0,0.20777141]
[1762263418554,0.20354295,104100.0,104090.0,0.20377141]
[1762263418980,0.20354295,104100.0,104090.0,0.20677141]
[1762263419358,0.20354295,104100.0,104090.0,0.21077141]
[1762263419569,0.20354295,104100.0,104090.0,0.007]
[1762263419979,0.21496295,104100.0,104090.0,0.007]
[1762263421788,0.78132403,104100.0,104090.0,0.004]
[1762263422000,0.19214141,104090.0,104080.0,0.40138245]
[1762263422166,0.31046048,104090.0,104080.0,0.40138245]
[1762263423231,0.31046048,104090.0,104080.0,0.40538245]
[1762263424248,0.31046048,104090.0,104080.0,0.40511133]
[1762263424709,0.33931874,104090.0,104080.0,0.40811133]
[1762263425745,0.24383967,104090.0,104080.0,0.40811133]
[1762263425978,0.20356141,104090.0,104080.0,0.6002712]
[1762263426395,0.20356141,104090.0,104080.0,0.40811133]
[1762263426610,0.21498141,104090.0,104080.0,0.40811133]
[1762263427909,0.31046048,104090.0,104080.0,0.40811133]
[1762263429796,0.31046048,104090.0,104080.0,0.6002712]
[1762263429999,0.11831907,104090.0,104080.0,0.6002712]
[1762263430196,0.22097805,104100.0,104090.0,0.19214141]
[1762263430435,0.19214141,104090.0,104080.0,0.6724461]
[1762263430635,0.21498141,104090.0,104080.0,0.40754623]
[1762263430997,0.21498141,104090.0,104080.0,0.40454623]
[1762263431257,0.21498141,104090.0,104080.0,0.40054623]
[1762263431376,0.31046048,104090.0,104080.0,0.40054623]
[1762263432014,0.31046048,104090.0,104080.0,0.40354623]
[1762263432452,0.31046048,104090.0,104080.0,0.40754623]
[1762263432906,0.87682156,104090.0,104080.0,0.40754623]
[1762263433140,0.31046048,104090.0,104080.0,0.40754623]
[1762263433888,0.31046048,104090.0,104080.0,0.40758623]
[1762263434319,0.31046048,104090.0,104080.0,0.40762623]
[1762263435409,0.21498141,104090.0,104080.0,0.40762623]
[1762263435838,0.20356141,104090.0,104080.0,0.40762623]
[1762263436047,0.21498141,104090.0,104080.0,0.40762623]
[1762263436465,0.20356141,104090.0,104080.0,0.40762623]
[1762263436679,0.20356141,104090.0,104080.0,0.5997861]
[1762263437310,0.23239824,104100.0,104080.0,0.6160861]
[1762263437515,0.19214141,104090.0,104080.0,0.6160861]
[1762263438315,0.19214141,104090.0,104080.0,0.6090861]
[1762263438547,0.19214141,104090.0,104080.0,0.6110861]
[1762263438963,0.19214141,104090.0,104080.0,0.6100861]
[1762263439180,0.23239824,104100.0,104080.0,0.6090861]
[1762263439395,0.27108906,104100.0,104080.0,0.6130861]
[1762263439580,0.23081377,104100.0,104090.0,0.19214141]
[1762263440051,0.19214141,104090.0,104080.0,0.6195861]
[1762263440263,0.21498141,104090.0,104080.0,0.40462623]
[1762263440453,0.21498141,104090.0,104080.0,0.40762623]
[1762263440900,0.21498141,104090.0,104080.0,0.40462623]
[1762263441354,0.31046048,104090.0,104080.0,0.40062623]
[1762263441591,0.31046048,104090.0,104080.0,0.40262623]
[1762263441803,0.31046048,104090.0,104080.0,0.40562623]
[1762263442024,0.32844657,104090.0,104080.0,0.40362623]
[1762263442458,0.32844657,104090.0,104080.0,0.40762623]
[1762263443975,0.31702657,104090.0,104080.0,0.5997861]
[1762263444200,0.2215475,104090.0,104080.0,0.40762623]
[1762263445051,0.2329675,104090.0,104080.0,0.40762623]
[1762263445257,0.34917512,104090.0,104080.0,0.40762623]
[1762263447578,0.35817648,104090.0,104080.0,0.40762623]
[1762263447792,0.90380901,104090.0,104080.0,0.40762623]
[1762263448240,0.33744793,104090.0,104080.0,0.40762623]
[1762263448384,0.35819355,104090.0,104080.0,0.40762623]
[1762263449558,0.38705178,104090.0,104080.0,0.40762623]
[1762263455153,0.25129448,104090.0,104080.0,0.42423623]
[1762263455355,0.24229312,104090.0,104080.0,0.42423623]
[1762263455600,0.24229312,104090.0,104080.0,0.6163961]
[1762263455840,0.2101275,104090.0,104080.0,0.6163961]
[1762263456039,0.20356141,104090.0,104080.0,0.6163961]
[1762263456414,0.19214141,104090.0,104080.0,0.6163961]
[1762263456801,0.19214141,104090.0,104080.0,0.6405361]
[1762263457363,0.19212295,104100.0,104090.0,0.19214141]
[1762263457651,0.2308824,104100.0,104090.0,0.24470141]
[1762263458095,0.2308824,104100.0,104090.0,0.22056141]
[1762263458311,0.2308824,104100.0,104090.0,0.24470141]
[1762263458720,0.19212295,104100.0,104090.0,0.24470141]
[1762263459184,0.19212295,104100.0,104090.0,0.05456]
[1762263459652,0.19212295,104100.0,104090.0,0.24670141]
[1762263459871,0.34326402,104110.0,104090.0,0.24670141]
[1762263459872,0.21893274,104110.0,104090.0,0.29670141]
[1762263460082,0.25767703,104110.0,104100.0,0.20873295]
[1762263460295,0.21893274,104110.0,104100.0,0.20929805]
[1762263460507,0.23035274,104110.0,104100.0,0.19268805]
[1762263460751,0.33725181,104110.0,104100.0,0.0005651]
[1762263460972,0.37598452,104110.0,104100.0,0.0005651]
[1762263461183,0.9423456,104110.0,104100.0,0.0005651]
[1762263461615,0.97119739,104110.0,104100.0,0.0025651]
[1762263461829,0.3868382,104110.0,104100.0,0.0035651]
[1762263462044,0.40483597,104110.0,104100.0,0.0035651]
[1762263462253,0.3868382,104110.0,104100.0,0.0035651]
[1762263462927,0.33725181,104110.0,104100.0,0.0035651]
[1762263463143,0.38683304,104110.0,104100.0,0.0035651]
[1762263463399,0.3661036,104110.0,104100.0,0.0035651]
[1762263463790,0.38683077,104110.0,104100.0,0.0035651]
[1762263464708,0.02885179,104110.0,104100.0,0.21229805]
[1762263464924,0.02885179,104110.0,104100.0,0.32943805]
[1762263465135,0.20221734,104130.0,104120.0,0.19208605]
[1762263465566,0.24191821,104140.0,104120.0,0.20854605]
[1762263465781,0.19204916,104140.0,104130.0,0.1920676]
[1762263466260,0.20507464,104140.0,104130.0,0.1920676]
[1762263466488,0.00209063,104140.0,104130.0,0.2451576]
[1762263466712,0.00209063,104140.0,104130.0,0.2951576]
[1762263467737,0.00209063,104140.0,104130.0,0.3011576]
[1762263468282,0.00209063,104140.0,104130.0,0.3051576]
[1762263468652,0.19413979,104140.0,104130.0,0.3051576]
[1762263468860,0.00209063,104140.0,104130.0,0.3051576]
[1762263471585,0.19413979,104140.0,104130.0,0.2551576]
[1762263471793,0.19413979,104140.0,104130.0,0.3051576]
[1762263471998,0.00209063,104140.0,104130.0,0.3051576]
[1762263472200,0.19413979,104140.0,104130.0,0.3051576]
[1762263472622,0.20555979,104140.0,104130.0,0.07215]
[1762263473037,0.20555979,104140.0,104130.0,0.2642176]
[1762263473446,0.01351063,104140.0,104130.0,0.2642176]
[1762263473613,0.00209063,104140.0,104130.0,0.3051576]
[1762263473847,0.19413979,104140.0,104130.0,0.3051576]
[1762263474165,0.00209063,104140.0,104130.0,0.3051576]
[1762263474771,0.19413979,104140.0,104130.0,0.3051576]
[1762263475499,0.19413979,104140.0,104130.0,0.30572265]
[1762263475702,0.00209063,104140.0,104130.0,0.30572265]
[1762263478633,0.00209063,104140.0,104130.0,0.25572265]
[1762263478808,0.19413979,104140.0,104130.0,0.30572264]
[1762263479013,0.19413979,104140.0,104130.0,0.11365504]
[1762263479211,0.19413979,104140.0,104130.0,0.03917504]
[1762263480222,0.21697979,104140.0,104130.0,0.01056504]
[1762263480423,0.20555979,104140.0,104130.0,0.20263264]
[1762263480629,0.20555979,104140.0,104130.0,0.02271504]
[1762263481028,0.21697979,104140.0,104130.0,0.01056504]
[1762263481766,0.19413979,104140.0,104130.0,0.00656504]
[1762263482179,0.20555979,104140.0,104130.0,0.00056504]
[1762263482393,0.20555979,104140.0,104130.0,0.00456504]
[1762263482594,0.21697979,104140.0,104130.0,0.00756504]
[1762263483004,0.21697979,104140.0,104130.0,0.00056504]
[1762263483207,0.21697979,104140.0,104130.0,0.00256504]
[1762263483410,0.20555979,104140.0,104130.0,0.19463264]
[1762263483618,0.00209063,104140.0,104130.0,0.22324264]
[1762263483827,0.19413979,104140.0,104130.0,0.29772264]
[1762263484041,0.00209063,104140.0,104130.0,0.29772264]
[1762263484472,0.19413979,104140.0,104130.0,0.29872264]
[1762263484681,0.19413979,104140.0,104130.0,0.10565504]
[1762263484905,0.21697979,104140.0,104130.0,0.00256504]
[1762263485089,0.21697979,104140.0,104130.0,0.00356504]
[1762263485500,0.00209063,104140.0,104130.0,0.25272264]
[1762263485716,0.19413979,104140.0,104130.0,0.11065503]
[1762263485914,0.19413979,104140.0,104130.0,0.30272263]
[1762263486365,0.00209063,104140.0,104130.0,0.29872263]
[1762263486773,0.00209063,104140.0,104130.0,0.4002017]
[1762263487200,0.00209063,104140.0,104130.0,0.40020169]
[1762263487426,0.24058232,104180.0,104170.0,0.19199385]
[1762263487635,0.21570184,104180.0,104170.0,0.20414385]
[1762263487841,0.01021642,104180.0,104170.0,0.20414385]
[1762263488051,0.00014552,104180.0,104170.0,0.33804385]
[1762263488269,0.00014552,104180.0,104170.0,0.43352292]
[1762263488681,0.00014552,104180.0,104170.0,0.19856907]
[1762263488903,0.19212094,104180.0,104170.0,0.05309]
[1762263489118,0.00014552,104180.0,104170.0,0.10309]
[1762263489534,0.00014552,104180.0,104170.0,0.12228938]
[1762263489744,0.19212094,104180.0,104170.0,0.11109]
[1762263490183,0.21914094,104180.0,104170.0,0.008]
[1762263490641,0.24797224,104180.0,104170.0,0.008]
[1762263491087,0.28647731,104180.0,104170.0,0.013]
[1762263491354,0.19201228,104160.0,104150.0,0.05056497]
[1762263491548,0.20552228,104160.0,104150.0,0.00056497]
[1762263491954,0.21903228,104160.0,104150.0,0.00056497]
[1762263493357,0.23967681,104160.0,104150.0,0.00056497]
[1762263493557,0.95440887,104160.0,104150.0,0.00056497]
[1762263493716,0.25760166,104160.0,104150.0,0.00056497]
[1762263494347,0.23967681,104160.0,104150.0,0.00056497]
[1762263494548,0.20552228,104160.0,104150.0,0.00056497]
[1762263495359,0.22618874,104160.0,104150.0,0.00056497]
[1762263495581,0.23969874,104160.0,104150.0,0.00056497]
[1762263495797,0.257641,104160.0,104150.0,0.00056497]
[1762263496478,0.244131,104160.0,104150.0,0.00056497]
[1762263497128,0.257641,104160.0,104150.0,0.00056497]
[1762263498400,0.25812156,104160.0,104150.0,0.00056497]
[1762263498860,0.24461156,104160.0,104150.0,0.00056497]
[1762263499078,0.19249284,104160.0,104150.0,0.02865497]
[1762263499537,0.19249284,104160.0,104150.0,0.10343497]
[1762263500005,0.20600284,104160.0,104150.0,0.00056497]
[1762263500656,0.19249284,104160.0,104150.0,0.02865497]
[1762263500783,0.19249284,104160.0,104150.0,0.05343497]
[1762263501179,0.19249284,104160.0,104150.0,0.07865497]
[1762263501674,0.19249284,104160.0,104150.0,0.10343497]
[1762263502425,0.21951284,104160.0,104150.0,0.00056497]
[1762263503051,0.24018203,104160.0,104150.0,0.00056497]
[1762263503250,0.2581262,104160.0,104150.0,0.00056497]
[1762263503660,0.2446162,104160.0,104150.0,0.00056497]
[1762263504069,0.22394701,104160.0,104150.0,0.00056497]
[1762263504684,0.95493338,104160.0,104150.0,0.00056497]
[1762263504801,0.95493338,104160.0,104150.0,0.00356497]
[1762263505213,0.25812617,104160.0,104150.0,0.00156497]
[1762263505619,0.25812617,104160.0,104150.0,0.00056497]
[1762263507250,0.25812617,104160.0,104150.0,0.00060497]
[1762263507459,0.22394701,104160.0,104150.0,0.20466569]
[1762263507653,0.19249284,104160.0,104150.0,0.24550568]
[1762263507855,0.00048056,104160.0,104150.0,0.29550568]
[1762263508271,0.00048056,104160.0,104150.0,0.39098475]
[1762263508469,0.00048056,104160.0,104150.0,0.39098474]
[1762263508875,0.00048056,104160.0,104150.0,0.39298474]
[1762263509098,0.00048056,104160.0,104150.0,0.39398474]
[1762263509697,0.19249284,104160.0,104150.0,0.39398473]
[1762263509893,0.19249284,104160.0,104150.0,0.10647494]
[1762263510098,0.19249284,104160.0,104150.0,0.24850566]
[1762263510312,0.19249284,104160.0,104150.0,0.10547494]
[1762263510537,0.19249284,104160.0,104150.0,0.07869494]
[1762263510785,0.19249284,104160.0,104150.0,0.08269494]
[1762263510987,0.19249284,104160.0,104150.0,0.30463566]
[1762263511145,0.00048056,104160.0,104150.0,0.30463566]
[1762263511502,0.00048056,104160.0,104150.0,0.10260494]
[1762263511503,0.19249284,104160.0,104150.0,0.10260494]
[1762263511716,0.19249284,104160.0,104150.0,0.29863566]
[1762263512236,0.19249284,104160.0,104150.0,0.30163566]
[1762263512890,0.00048056,104160.0,104150.0,0.44007473]
[1762263513094,0.00048056,104160.0,104150.0,0.42107472]
[1762263513303,0.00014552,104180.0,104170.0,0.19199385]
[1762263513505,0.00014552,104180.0,104170.0,0.35268292]
[1762263513706,0.00014552,104180.0,104170.0,0.41971292]
[1762263513913,0.00062594,104180.0,104170.0,0.41971292]
[1762263514747,0.00062594,104180.0,104170.0,0.61971292]
[1762263514964,0.00062594,104180.0,104170.0,0.62027782]
[1762263515166,0.00062594,104180.0,104170.0,0.63327781]
[1762263515605,0.0022,104200.0,104190.0,0.241957]
[1762263515822,0.0022,104200.0,104190.0,0.52421606]
[1762263516035,0.19413857,104200.0,104190.0,0.06157]
[1762263516733,0.19413857,104200.0,104190.0,0.10069]
[1762263516946,0.19413857,104200.0,104190.0,0.06157]
[1762263517819,0.19413857,104200.0,104190.0,0.01557]
[1762263518031,0.19413857,104200.0,104190.0,0.01857]
[1762263518946,0.19413857,104200.0,104190.0,0.01557]
[1762263519372,0.19413857,104200.0,104190.0,0.004]
[1762263519373,0.22211857,104200.0,104190.0,0.004]
[1762263519753,0.191957,104190.0,104180.0,0.06157]
[1762263519953,0.200827,104190.0,104180.0,0.06157]
[1762263520163,0.19197542,104180.0,104170.0,0.01213486]
[1762263521224,0.20596542,104180.0,104170.0,0.00056486]
[1762263521421,0.91676263,104180.0,104170.0,0.00056486]
[1762263521938,0.91676263,104180.0,104170.0,0.00656486]
[1762263523237,0.91676263,104180.0,104170.0,0.00056486]
[1762263523640,0.19197542,104180.0,104170.0,0.00056486]
[1762263523822,0.88878263,104180.0,104170.0,0.00056486]
[1762263524063,0.91484263,104180.0,104170.0,0.00056486]
[1762263524494,0.78421163,104180.0,104170.0,0.00056486]
[1762263524622,0.79820163,104180.0,104170.0,0.00056486]
[1762263525330,0.23202542,104180.0,104170.0,0.00056486]
[1762263525535,0.79820163,104180.0,104170.0,0.00056486]
[1762263525919,0.23202542,104180.0,104170.0,0.00056486]
[1762263526124,0.78421163,104180.0,104170.0,0.00056486]
[1762263526723,0.19197542,104180.0,104170.0,0.06683486]
[1762263526923,0.77214163,104180.0,104170.0,0.00056486]
[1762263527343,0.78613163,104180.0,104170.0,0.00056486]
[1762263530191,0.80677844,104180.0,104170.0,0.00056486]
[1762263530731,0.88366421,104180.0,104170.0,0.00056486]
[1762263532104,0.82470229,104180.0,104170.0,0.00056486]
[1762263532594,0.80677844,104180.0,104170.0,0.00056486]
[1762263532745,0.20596542,104180.0,104170.0,0.00056486]
[1762263534162,0.20596542,104180.0,104170.0,0.00056485]
[1762263535046,0.78613163,104180.0,104170.0,0.00056485]
[1762263535258,0.80678106,104180.0,104170.0,0.00056485]
[1762263537372,0.24060485,104180.0,104170.0,0.00056485]
[1762263537783,0.80678106,104180.0,104170.0,0.00056485]
[1762263539044,0.82471228,104180.0,104170.0,0.00056485]
[1762263539253,0.87471228,104180.0,104170.0,0.00056485]
[1762263540493,0.85678106,104180.0,104170.0,0.00056485]
[1762263541490,0.80678106,104180.0,104170.0,0.00056485]
[1762263542820,0.19199385,104170.0,104160.0,0.00088387]
[1762263543032,0.19199385,104170.0,104150.0,4e-05]
[1762263543033,0.19201228,104160.0,104150.0,4e-05]
[1762263543284,0.80696588,104160.0,104150.0,4e-05]
[1762263543494,0.87489389,104160.0,104150.0,4e-05]
[1762263543692,0.88385789,104160.0,104150.0,0.00084515]
[1762263543893,0.83385789,104160.0,104150.0,0.00084515]
[1762263544300,3.83385789,104160.0,104150.0,1e-08]
[1762263544612,3.88385789,104160.0,104150.0,1e-08]
[1762263545773,0.1920676,104130.0,104120.0,0.19208501]
[1762263546003,0.19208605,104120.0,104110.0,0.23756793]
[1762263546207,0.19208605,104120.0,104110.0,0.2279645]
[1762263546372,0.19208605,104120.0,104110.0,0.2442345]
[1762263546567,0.28754667,104130.0,104110.0,0.2199445]
[1762263546882,0.28754667,104130.0,104110.0,0.2442345]
[1762263547119,0.28754667,104130.0,104120.0,0.001]
[1762263547464,0.31578667,104130.0,104110.0,0.22873965]
[1762263547663,0.31578667,104130.0,104120.0,0.19208605]
[1762263547870,0.31578667,104130.0,104110.0,0.23173965]
[1762263548071,0.1920676,104130.0,104120.0,0.20835605]
[1762263548308,0.1920676,104130.0,104120.0,0.23264605]
[1762263548516,0.2203076,104130.0,104110.0,0.20644965]
[1762263548721,0.19208605,104120.0,104110.0,0.06434515]
[1762263548923,0.20842605,104120.0,104110.0,0.20644965]
[1762263549282,0.20842605,104120.0,104110.0,0.01234515]
[1762263549851,0.19208605,104120.0,104110.0,0.22071965]
[1762263550338,0.19208605,104120.0,104110.0,0.22171965]
[1762263550537,0.29944667,104130.0,104110.0,0.24900965]
[1762263550750,0.32293667,104130.0,104110.0,0.24900965]
[1762263550941,0.19208605,104120.0,104110.0,0.25100965]
[1762263551813,0.2039676,104130.0,104110.0,0.25100965]
[1762263552043,0.1920676,104130.0,104120.0,0.23264605]
[1762263552451,0.45805851,104140.0,104120.0,0.23264605]
[1762263552640,0.1920676,104130.0,104120.0,0.04056]
[1762263552792,0.1920676,104130.0,104120.0,0.23264605]
[1762263552994,0.1920676,104130.0,104120.0,0.20835605]
[1762263553195,0.2039676,104130.0,104120.0,0.01699114]
[1762263553396,0.44843972,104140.0,104120.0,0.20907719]
[1762263553606,0.2203076,104130.0,104110.0,0.22873916]
[1762263553825,0.2203076,104130.0,104110.0,0.27873916]
[1762263554024,0.19208605,104120.0,104110.0,0.27873965]
[1762263554223,0.19208605,104120.0,104110.0,0.06234515]
[1762263554432,0.32293667,104130.0,104110.0,0.27171965]
[1762263554660,0.32293667,104130.0,104110.0,0.29600965]
[1762263554873,0.19208605,104120.0,104110.0,0.27171965]
[1762263555084,0.19208605,104120.0,104110.0,0.22171965]
[1762263555286,0.23173605,104120.0,104110.0,0.00048515]
[1762263555687,0.23173605,104120.0,104110.0,0.00248515]
[1762263555869,0.20719605,104120.0,104110.0,0.00248515]
[1762263556198,0.20719605,104120.0,104110.0,0.19458965]
[1762263556829,0.20719605,104120.0,104110.0,0.00648515]
[1762263557233,0.20719605,104120.0,104110.0,0.01779515]
[1762263557959,0.20719605,104120.0,104110.0,0.20989965]
[1762263558972,0.20719605,104120.0,104110.0,0.01779515]
[1762263559375,0.20719605,104120.0,104110.0,0.01875676]
[1762263560009,0.20719605,104120.0,104110.0,0.00744676]
[1762263560217,1.08282334,104120.0,104110.0,0.00744676]
[1762263560623,0.83652334,104120.0,104110.0,0.00744676]
[1762263560829,0.89549503,104120.0,104110.0,0.00744676]
[1762263561048,0.89549503,104120.0,104110.0,0.00544676]
[1762263561263,0.88652334,104120.0,104110.0,0.00544676]
[1762263562208,0.83652334,104120.0,104110.0,0.00144676]
[1762263565359,0.27034713,104120.0,104110.0,0.00144676]
[1762263565562,0.24967771,104120.0,104110.0,0.00144676]
[1762263565898,0.23173605,104120.0,104110.0,0.00144676]
[1762263566745,0.20719605,104120.0,104110.0,0.00144676]
[1762263566957,0.19208605,104120.0,104110.0,0.02902676]
[1762263567543,0.19208605,104120.0,104110.0,0.20486126]
[1762263567544,0.20719605,104120.0,104110.0,0.20486126]
[1762263567673,0.20719605,104120.0,104110.0,0.01275676]
[1762263567881,0.45026781,104130.0,104110.0,0.24034171]
[1762263568097,0.19208605,104120.0,104110.0,0.27844965]
[1762263568426,0.44979781,104130.0,104110.0,0.27844965]
[1762263568656,0.44979781,104130.0,104120.0,0.19208605]
[1762263569061,0.19208605,104120.0,104110.0,0.27844965]
[1762263569261,0.27284,104130.0,104120.0,0.19208605]
[1762263569461,0.25773,104130.0,104120.0,0.20835605]
[1762263569905,0.2463,104130.0,104120.0,0.28690605]
[1762263571291,0.2463,104130.0,104120.0,0.28290605]
[1762263571679,0.2463,104130.0,104120.0,0.28490605]
[1762263571886,0.2463,104130.0,104120.0,0.28690605]
[1762263572307,0.2463,104130.0,104120.0,0.28490605]
[1762263572660,0.2463,104130.0,104120.0,0.28890605]
[1762263572858,0.21675356,104150.0,104130.0,0.19204997]
[1762263573058,0.25539434,104150.0,104140.0,0.19204916]
[1762263573272,0.23470987,104150.0,104130.0,0.26601997]
[1762263573500,0.19204916,104140.0,104130.0,0.26601997]
[1762263573886,0.21675356,104150.0,104130.0,0.28245997]
[1762263574089,0.23471027,104150.0,104130.0,0.28245997]
[1762263574294,0.23471027,104150.0,104140.0,0.19204916]
[1762263574497,0.21675356,104150.0,104130.0,0.28245997]
[1762263575639,0.87840884,104150.0,104140.0,0.002]
[1762263575819,0.35086295,104150.0,104140.0,0.002]
[1762263576038,0.19206582,104140.0,104120.0,0.20168969]
[1762263576313,0.21556582,104140.0,104120.0,0.20168969]
[1762263576532,0.19206582,104140.0,104130.0,0.2105076]
[1762263576969,0.19206582,104140.0,104130.0,0.01844]
[1762263577185,0.19206582,104140.0,104130.0,0.2105076]
[1762263577627,0.20765582,104140.0,104120.0,0.27565969]
[1762263578287,0.20765582,104140.0,104130.0,0.1920676]
[1762263578950,0.20765582,104140.0,104130.0,0.1940676]
[1762263579157,0.20765582,104140.0,104130.0,0.00248071]
[1762263579428,0.20765582,104140.0,104130.0,0.19454831]
[1762263579678,0.20765582,104140.0,104130.0,0.00248071]
[1762263580713,0.2020103,104150.0,104140.0,0.05]
[1762263580915,0.19203103,104150.0,104140.0,0.25848916]
[1762263581099,0.19204916,104140.0,104130.0,0.002]
[1762263581335,0.20763916,104140.0,104120.0,0.31877969]
[1762263581744,0.00997836,104150.0,104140.0,0.19204916]
[1762263581944,0.00997836,104150.0,104140.0,0.20848916]
[1762263582117,0.47371228,104160.0,104150.0,0.19203072]
[1762263582558,0.19203072,104150.0,104140.0,0.26601916]
[1762263582895,0.19203072,104150.0,104140.0,0.09041]
[1762263583098,0.19203072,104150.0,104140.0,0.28245916]
[1762263583284,0.2976746,104150.0,104140.0,0.01644]
[1762263583484,0.19204916,104140.0,104130.0,0.27564098]
[1762263583689,0.3132646,104150.0,104140.0,0.19204916]
[1762263583908,0.2976746,104150.0,104140.0,0.20848916]
[1762263584297,0.2976746,104150.0,104140.0,0.21048916]
[1762263584497,0.2976746,104150.0,104140.0,0.20848916]
[1762263584863,0.20219553,104150.0,104140.0,0.23245916]
[1762263585067,0.20219553,104150.0,104140.0,0.23445916]
[1762263585244,0.01016481,104150.0,104140.0,0.23445916]
[1762263585444,0.20219553,104150.0,104140.0,0.23445916]
[1762263585845,0.20219553,104150.0,104140.0,0.01844]
[1762263586059,0.21758553,104150.0,104140.0,0.01844]
[1762263586268,0.21758553,104150.0,104140.0,0.21072948]
[1762263586678,0.20219553,104150.0,104140.0,0.23430948]
[1762263587348,0.20219553,104150.0,104140.0,0.21072948]
[1762263587615,0.21758553,104150.0,104140.0,0.19428948]
[1762263587841,0.00013967,104150.0,104140.0,0.32609948]
[1762263588087,0.00013967,104150.0,104140.0,0.27609948]
[1762263588298,0.0008839,104170.0,104160.0,0.19201228]
[1762263588509,0.0008839,104170.0,104160.0,0.42684135]
[1762263588727,0.0008839,104170.0,104160.0,0.33136228]
[1762263590750,0.0008839,104170.0,104160.0,0.33936228]
[1762263591196,0.0008839,104170.0,104160.0,0.34236228]
[1762263591795,0.0008839,104170.0,104160.0,0.33436228]
[1762263591970,0.0008839,104170.0,104160.0,0.29124228]
[1762263592168,0.0008839,104170.0,104160.0,0.34036228]
[1762263594282,0.19287775,104170.0,104160.0,0.29724228]
[1762263594591,0.19287775,104170.0,104160.0,0.34032228]
[1762263594742,0.19287775,104170.0,104160.0,0.14831]
[1762263594941,0.19287775,104170.0,104160.0,0.34032228]
[1762263595774,0.19287775,104170.0,104160.0,0.3405122]
[1762263596077,0.0008839,104170.0,104160.0,0.3405122]
[1762263596665,0.19287775,104170.0,104160.0,0.2474322]
[1762263597011,0.0008839,104170.0,104160.0,0.2974322]
[1762263597207,0.0008839,104170.0,104160.0,0.2474322]
[1762263597449,0.0008839,104170.0,104160.0,0.2974322]
[1762263597854,0.19287775,104170.0,104160.0,0.04941992]
[1762263598060,0.23841775,104170.0,104160.0,0.00018992]
[1762263598258,0.33389682,104170.0,104160.0,0.00418992]